bitfinex-derivatives/quotes_SOLF0:USTF0_20250831
["timestamp","ask_amount","ask_price","bid_price","bid_amount"]
[1756670838254,123.71580396,205.24,205.21,4.72166747]
[1756670838556,123.71580396,205.24,205.22,4.72166747]
[1756670838856,123.71580396,205.24,205.17,7.75]
[1756670839050,123.71580396,205.24,205.18,4.52186104]
[1756670839258,121.0,205.23,205.19,12.27186104]
[1756670839452,121.0,205.23,205.2,4.52186104]
[1756670839658,121.0,205.23,205.21,4.52186104]
[1756670839856,121.0,205.23,205.22,4.52123335]
[1756670840457,120.98,205.23,205.22,4.52123335]
[1756670841353,120.98,205.23,205.15,7.75]
[1756670844566,2.69580396,205.24,205.15,7.75]
[1756670844768,120.94,205.23,205.15,7.75]
[1756670846469,2.69580396,205.24,205.15,7.75]
[1756670846669,2.69580396,205.24,205.16,7.75]
[1756670846863,120.92,205.23,205.16,7.75]
[1756670848562,2.69580396,205.27,205.16,7.75]
[1756670848768,120.9,205.26,205.16,7.75]
[1756670851469,120.9,205.25,205.16,7.75]
[1756670852372,2.69580396,205.27,205.16,7.75]
[1756670852573,2.69580396,205.24,205.13,7.75]
[1756670856776,2.69580396,205.27,205.16,7.75]
[1756670856966,120.82,205.25,205.18,2.69580396]
[1756670857174,120.82,205.25,205.19,7.75]
[1756670858674,327.62,205.28,205.2,2.69580396]
[1756670858870,120.82,205.3,205.21,7.72]
[1756670859076,120.82,205.3,205.22,2.69580396]
[1756670860279,120.82,205.3,205.23,2.69580396]
[1756670860782,120.8,205.29,205.23,7.72]
[1756670860975,120.8,205.3,205.23,7.72]
[1756670862480,120.8,205.3,205.2,7.72]
[1756670867586,120.8,205.3,205.13,4.09466399]
[1756670867782,2.69580396,205.26,205.14,7.72]
[1756670867988,2.69580396,205.26,205.14,10.41580396]
[1756670869177,2.69580396,205.26,205.14,7.72]
[1756670869384,2.69580396,205.23,205.11,7.72]
[1756670869580,17.98,205.22,205.11,7.72]
[1756670869980,17.98,205.22,205.11,10.41580396]
[1756670870585,2.69580396,205.23,205.11,10.41580396]
[1756670870783,47.48,205.22,205.11,10.41580396]
[1756670873982,327.52,205.26,205.12,7.72]
[1756670874178,120.7,205.25,205.15,7.72]
[1756670874381,327.52,205.26,205.18,7.72]
[1756670874583,120.7,205.25,205.18,7.72]
[1756670874781,448.22,205.26,205.18,7.72]
[1756670875289,120.7,205.25,205.18,7.72]
[1756670877586,120.68,205.24,205.18,7.72]
[1756670877986,327.52,205.26,205.18,7.72]
[1756670878187,120.68,205.25,205.18,7.72]
[1756670879189,120.68,205.24,205.19,2.69580396]
[1756670879389,120.68,205.24,205.2,7.72]
[1756670879586,327.52,205.26,205.2,7.72]
[1756670879887,120.66,205.25,205.2,7.72]
[1756670881388,327.52,205.26,205.2,7.72]
[1756670881586,120.66,205.25,205.2,7.72]
[1756670885197,120.66,205.25,205.17,10.41580396]
[1756670885397,327.52,205.26,205.17,10.41580396]
[1756670885597,120.64,205.25,205.17,10.41580396]
[1756670885798,327.52,205.26,205.17,10.41580396]
[1756670885998,120.62,205.25,205.17,10.41580396]
[1756670886600,120.62,205.25,205.17,7.72]
[1756670886799,120.62,205.25,205.16,2.69580396]
[1756670887000,120.62,205.25,205.16,10.41580396]
[1756670887297,123.31580396,205.25,205.13,14.51046795]
[1756670890604,123.31580396,205.25,205.13,11.81466399]
[1756670890906,123.31580396,205.25,205.13,7.72]
[1756670892499,120.6,205.24,205.13,7.72]
[1756670894302,2.69580396,205.22,205.09,11.48380715]
[1756670894606,111.32,205.21,205.1,7.39]
[1756670895105,2.69580396,205.22,205.1,7.39]
[1756670895303,120.58,205.21,205.1,7.39]
[1756670898210,2.69580396,205.22,205.1,7.39]
[1756670898506,120.56,205.21,205.1,7.39]
[1756670899305,120.56,205.2,205.1,7.39]
[1756670899706,2.69580396,205.19,205.1,7.39]
[1756670899903,120.56,205.18,205.1,7.39]
[1756670900711,120.56,205.18,205.07,77.40876911]
[1756670902212,120.56,205.18,205.07,73.31496196]
[1756670903914,120.56,205.18,205.07,7.39]
[1756670913421,2.69580396,205.19,205.07,7.39]
[1756670913621,123.19580396,205.18,205.07,7.39]
[1756670915922,2.69580396,205.18,205.07,7.39]
[1756670916222,22.74,205.17,205.07,7.39]
[1756670920822,2.69580396,205.18,205.07,7.39]
[1756670921028,44.16,205.17,205.07,7.39]
[1756670926537,46.85580396,205.17,205.07,7.39]
[1756670930448,2.69580396,205.17,205.07,7.39]
[1756670930741,64.18,205.16,205.07,7.39]
[1756670931539,2.69580396,205.14,205.06,4.09380715]
[1756670931743,2.69580396,205.14,205.05,7.3]
[1756670934948,5.43430253,205.18,205.05,7.3]
[1756670935251,2.69580396,205.16,205.06,7.3]
[1756670935453,4.86,205.15,205.06,7.3]
[1756670935653,26.5,205.15,205.06,7.3]
[1756670936352,2.69580396,205.16,205.06,7.3]
[1756670936553,49.73580396,205.16,205.06,7.3]
[1756670937147,49.73580396,205.16,205.06,4.09380715]
[1756670937148,70.51580396,205.16,205.06,4.09380715]
[1756670937452,70.51580396,205.16,205.07,7.3]
[1756670937653,5.43430253,205.21,205.08,7.3]
[1756670937958,86.4,205.17,205.08,7.3]
[1756670938146,2.69580396,205.18,205.08,7.3]
[1756670938451,108.0,205.17,205.08,7.3]
[1756670940256,120.36,205.17,205.08,7.3]
[1756670941355,2.69580396,205.18,205.08,7.3]
[1756670941655,17.74,205.17,205.08,7.3]
[1756670941855,5.43430253,205.21,205.08,11.39380715]
[1756670942058,2.69580396,205.19,205.09,7.3]
[1756670947957,62.42,205.18,205.09,7.3]
[1756670949158,2.69580396,205.19,205.09,7.3]
[1756670949365,91.16,205.18,205.09,4.09380715]
[1756670949661,91.16,205.18,205.1,7.49]
[1756670953361,2.69580396,205.17,205.1,7.49]
[1756670957961,1.72558725,205.15,205.1,7.49]
[1756670958266,1.72558725,205.15,205.08,1.72558725]
[1756670958267,1.72558725,205.15,205.09,7.49]
[1756670960468,91.16,205.18,205.09,7.49]
[1756670960769,1.72558725,205.15,205.09,7.49]
[1756670960966,1.72558725,205.17,205.11,7.49]
[1756670961467,39.90558725,205.17,205.11,7.49]
[1756670967366,1.72558725,205.17,205.11,7.49]
[1756670967571,33.88558725,205.17,205.11,7.49]
[1756670970176,32.16,205.17,205.11,7.49]
[1756670970375,1.72558725,205.16,205.1,1.72558725]
[1756670970876,1.72558725,205.16,205.11,7.49]
[1756670971378,1.72558725,205.16,205.1,1.72558725]
[1756670971682,1.72558725,205.16,205.11,7.49]
[1756670972182,1.72558725,205.16,205.1,1.72558725]
[1756670973084,1.72558725,205.16,205.11,7.49]
[1756670973284,1.72558725,205.16,205.1,1.72558725]
[1756670973678,1.72558725,205.16,205.11,7.49]
[1756670973888,1.72558725,205.16,205.1,1.72558725]
[1756670974088,69.8,205.18,205.11,7.49]
[1756670974287,1.72558725,205.17,205.11,7.49]
[1756670975286,32.14558725,205.19,205.12,1.72558725]
[1756670975583,32.14558725,205.19,205.13,7.49]
[1756670979091,1.72558725,205.19,205.13,7.49]
[1756670979394,120.16,205.18,205.13,7.73]
[1756670979686,120.16,205.18,205.12,1.72558725]
[1756670980293,120.16,205.18,205.13,7.73]
[1756670980593,120.16,205.18,205.12,1.72558725]
[1756670981185,120.16,205.18,205.13,7.73]
[1756670981790,120.16,205.18,205.12,1.72558725]
[1756670982191,120.16,205.18,205.13,7.73]
[1756670982395,121.88558725,205.18,205.13,7.73]
[1756670982896,121.88558725,205.18,205.12,1.72558725]
[1756670983293,121.88558725,205.18,205.1,7.73]
[1756670983491,121.88558725,205.18,205.12,9.45558725]
[1756670984499,121.88558725,205.18,205.12,7.73]
[1756670984696,120.14,205.17,205.12,7.73]
[1756670984896,120.14,205.17,205.11,1.72558725]
[1756670985096,120.14,205.17,205.12,7.73]
[1756670985598,120.14,205.17,205.11,1.72558725]
[1756670985791,1.72558725,205.18,205.12,7.73]
[1756670985988,90.76,205.17,205.11,1.72558725]
[1756670986398,90.76,205.17,205.12,7.73]
[1756670986600,90.76,205.17,205.11,1.72558725]
[1756670987001,90.76,205.17,205.12,7.73]
[1756670987200,90.76,205.17,205.11,1.72558725]
[1756670987391,90.76,205.17,205.12,7.73]
[1756670987798,90.76,205.17,205.11,1.72558725]
[1756670987994,90.76,205.17,205.12,7.73]
[1756670988298,90.76,205.17,205.11,1.72558725]
[1756670988507,90.76,205.17,205.12,7.73]
[1756670988796,90.76,205.17,205.11,9.45558725]
[1756670991002,1.72558725,205.18,205.11,9.45558725]
[1756670991301,112.94558725,205.18,205.11,9.45558725]
[1756670997605,112.94558725,205.18,205.11,1.72558725]
[1756671000403,1.72558725,205.14,205.08,4.10047975]
[1756671000605,111.22,205.18,205.09,1.72558725]
[1756671000910,1.72558725,205.16,205.09,1.72558725]
[1756671001808,121.76558725,205.16,205.12,7.73]
[1756671002311,121.76558725,205.16,205.11,1.72558725]
[1756671002605,1.72558725,205.16,205.12,7.73]
[1756671002807,120.04,205.17,205.12,7.73]
[1756671003910,121.76558725,205.18,205.12,7.73]
[1756671004412,5.43430253,205.21,205.12,7.73]
[1756671004611,1.72558725,205.18,205.13,9.45558725]
[1756671004810,120.04,205.2,205.13,9.45558725]
[1756671005010,1.72558725,205.19,205.13,9.45558725]
[1756671008013,1.72558725,205.17,205.11,1.72558725]
[1756671008413,1.72558725,205.17,205.11,8.90558725]
[1756671008910,1.72558725,205.15,205.1,4.10047975]
[1756671009105,1.72558725,205.15,205.08,13.006067]
[1756671009310,108.58,205.14,205.08,13.006067]
[1756671010310,1.72558725,205.15,205.08,13.006067]
[1756671010509,120.02,205.14,205.08,13.006067]
[1756671013017,1.72558725,205.15,205.08,13.006067]
[1756671013316,121.72558725,205.15,205.08,13.006067]
[1756671014316,120.0,205.15,205.08,13.006067]
[1756671015817,120.0,205.15,205.09,4.10047975]
[1756671016116,121.70558725,205.16,205.1,8.90558725]
[1756671022222,119.98,205.16,205.1,8.90558725]
[1756671022517,119.96,205.15,205.1,1.72558725]
[1756671022921,119.96,205.15,205.11,7.18]
[1756671024426,121.68558725,205.15,205.09,4.10047975]
[1756671024721,1.72558725,205.11,205.05,4.10047975]
[1756671024920,1.72558725,205.11,205.06,11.28047975]
[1756671025427,1.72558725,205.11,205.07,7.18]
[1756671027616,1.72558725,205.11,205.05,5.826067]
[1756671028215,121.66558725,205.11,205.05,5.826067]
[1756671029422,1.72558725,205.11,205.05,5.826067]
[1756671030222,1.72558725,205.11,205.06,7.18]
[1756671030423,1.72558725,205.11,205.05,5.826067]
[1756671030625,1.72558725,205.11,205.06,7.18]
[1756671031424,1.72558725,205.11,205.05,5.826067]
[1756671031826,1.72558725,205.11,205.06,7.18]
[1756671032518,119.92,205.12,205.07,1.72558725]
[1756671032722,119.92,205.12,205.08,7.18]
[1756671032923,119.92,205.12,205.07,1.72558725]
[1756671033127,119.92,205.13,205.1,7.18]
[1756671033619,73.71123738,205.22,205.11,1.72558725]
[1756671033822,195.35682463,205.22,205.16,1.72558725]
[1756671034019,75.43682463,205.22,205.16,1.72558725]
[1756671034221,119.92,205.21,205.16,8.90558725]
[1756671035526,119.9,205.2,205.16,8.90558725]
[1756671037020,75.43682463,205.22,205.16,8.90558725]
[1756671037225,73.71123738,205.22,205.2,1.72558725]
[1756671037526,119.9,205.25,205.21,7.18]
[1756671038615,5.43430253,205.32,205.22,7.71]
[1756671038820,1.72558725,205.3,205.23,1.72558725]
[1756671039026,81.64,205.29,205.23,1.72558725]
[1756671039424,81.64,205.29,205.21,7.71]
[1756671039624,81.64,205.29,205.23,1.72558725]
[1756671039922,81.64,205.29,205.21,7.71]
[1756671042724,2.69242735,205.26,205.14,7.71]
[1756671043227,18.34,205.25,205.14,7.71]
[1756671045825,35.12,205.24,205.14,7.71]
[1756671046021,45.74,205.25,205.17,7.71]
[1756671046226,2.69242735,205.29,205.2,7.71]
[1756671046427,19.08,205.28,205.2,7.71]
[1756671047029,6.2823384,205.34,205.21,4.46207346]
[1756671047333,2.69242735,205.3,205.22,4.46207346]
[1756671047528,2.69242735,205.3,205.23,4.46207346]
[1756671047726,2.69242735,205.3,205.24,4.46207346]
[1756671047926,2.69242735,205.3,205.25,4.46207346]
[1756671048126,2.69242735,205.3,205.2,7.71]
[1756671048323,2.69242735,205.3,205.21,4.461589]
[1756671048528,2.69242735,205.3,205.22,4.461589]
[1756671048826,2.69242735,205.3,205.17,2.69242735]
[1756671048827,2.69242735,205.27,205.23,4.461589]
[1756671049027,87.68,205.26,205.16,7.71]
[1756671049228,87.68,205.26,205.17,4.46185845]
[1756671049529,87.68,205.26,205.18,4.46185845]
[1756671049733,87.68,205.26,205.19,4.46185845]
[1756671049931,2.69242735,205.24,205.2,4.46185845]
[1756671050232,2.69242735,205.24,205.21,4.46254063]
[1756671050437,2.69242735,205.24,205.12,7.71]
[1756671050636,2.69242735,205.24,205.13,4.46275125]
[1756671050836,2.69242735,205.24,205.14,4.46275125]
[1756671051134,2.69242735,205.24,205.15,4.46275125]
[1756671051334,2.69242735,205.24,205.16,4.46275125]
[1756671051534,2.69242735,205.24,205.17,4.46275125]
[1756671051730,2.69242735,205.24,205.18,4.46275125]
[1756671051937,2.69242735,205.24,205.19,4.46302198]
[1756671052138,119.8,205.23,205.2,4.46302198]
[1756671052437,2.69242735,205.21,205.12,7.71]
[1756671052634,2.69242735,205.21,205.13,4.46322052]
[1756671052838,2.69242735,205.21,205.14,4.46322052]
[1756671053035,119.8,205.23,205.15,4.46322052]
[1756671053335,2.69242735,205.2,205.16,4.46322052]
[1756671053535,2.69242735,205.2,205.17,4.46322052]
[1756671053736,2.69242735,205.2,205.12,7.71]
[1756671053932,2.69242735,205.2,205.13,4.46320897]
[1756671054133,2.69242735,205.21,205.14,4.46320897]
[1756671054333,2.69242735,205.21,205.15,4.46320897]
[1756671054530,2.69242735,205.21,205.16,4.46320897]
[1756671054734,2.69242735,205.21,205.17,4.46332604]
[1756671054934,2.69242735,205.21,205.18,4.46332604]
[1756671055139,2.69242735,205.21,205.12,7.71]
[1756671055331,2.69242735,205.21,205.13,4.46417332]
[1756671055530,2.69242735,205.21,205.14,4.46417332]
[1756671055834,2.69242735,205.21,205.15,4.46417332]
[1756671056034,2.69242735,205.21,205.16,4.46417332]
[1756671056342,117.82,205.2,205.17,4.46417332]
[1756671056638,117.82,205.2,205.18,4.46417332]
[1756671056840,2.69242735,205.21,205.12,7.71]
[1756671057040,2.69242735,205.21,205.13,4.46447084]
[1756671057343,119.8,205.2,205.14,4.46447084]
[1756671057540,119.8,205.2,205.15,4.46462869]
[1756671057741,2.69242735,205.21,205.16,4.46462869]
[1756671057941,119.8,205.19,205.17,4.46462869]
[1756671058240,119.8,205.19,205.18,4.46462869]
[1756671058740,2.69242735,205.21,205.18,4.46462869]
[1756671058941,119.8,205.19,205.12,7.71]
[1756671059134,119.8,205.19,205.13,4.46497386]
[1756671059337,119.8,205.19,205.14,12.17497386]
[1756671059537,119.8,205.19,205.15,4.46497386]
[1756671059742,119.8,205.19,205.16,4.46497386]
[1756671059941,119.8,205.19,205.17,4.46497386]
[1756671060142,119.8,205.19,205.18,4.46497386]
[1756671060743,2.69242735,205.21,205.18,4.46497386]
[1756671060942,119.8,205.2,205.14,7.71]
[1756671061144,2.69242735,205.21,205.15,4.46647388]
[1756671061338,327.58,205.25,205.16,4.46647388]
[1756671061538,119.8,205.24,205.17,12.17647388]
[1756671061743,119.8,205.24,205.18,4.46647388]
[1756671061945,119.8,205.24,205.19,12.17647388]
[1756671062244,119.8,205.23,205.2,4.46647388]
[1756671062442,119.8,205.23,205.21,4.46647388]
[1756671062635,119.8,205.23,205.18,7.71]
[1756671062840,119.8,205.23,205.19,4.46484528]
[1756671063138,327.58,205.25,205.2,4.46484528]
[1756671063349,119.8,205.24,205.22,7.71]
[1756671063543,119.8,205.24,205.23,4.46308877]
[1756671063742,119.8,205.24,205.23,12.17308877]
[1756671064250,119.78,205.24,205.23,12.17308877]
[1756671064549,119.78,205.24,205.23,4.46308877]
[1756671065145,119.78,205.24,205.23,12.17308877]
[1756671065345,447.36,205.25,205.24,7.71]
[1756671065550,447.36,205.25,205.24,4.46308877]
[1756671066049,447.36,205.25,205.2,7.71]
[1756671066251,447.36,205.25,205.21,4.46315802]
[1756671066453,447.36,205.25,205.22,4.46315802]
[1756671066646,447.36,205.25,205.23,4.46315802]
[1756671066846,447.36,205.25,205.21,7.71]
[1756671067048,447.36,205.25,205.22,4.46301148]
[1756671067247,447.36,205.25,205.23,4.46301148]
[1756671067546,447.36,205.25,205.21,7.71]
[1756671067750,447.36,205.25,205.22,4.46245649]
[1756671067949,447.36,205.25,205.23,4.46245649]
[1756671068250,447.36,205.25,205.24,4.46245649]
[1756671072052,447.98,205.25,205.24,11.92245649]
[1756671072354,447.98,205.25,205.24,4.46245649]
[1756671074255,447.98,205.25,205.21,7.46]
[1756671074454,447.98,205.25,205.22,4.46605522]
[1756671074650,447.98,205.25,205.23,4.46605522]
[1756671074853,447.98,205.25,205.24,4.46605522]
[1756671077056,447.98,205.25,205.21,7.46]
[1756671077658,327.58,205.25,205.21,7.46]
[1756671077855,120.44,205.24,205.21,7.46]
[1756671081661,120.44,205.24,205.17,7.46]
[1756671081857,327.58,205.25,205.17,7.46]
[1756671082157,120.44,205.24,205.17,7.46]
[1756671091965,120.44,205.24,205.19,1.72386151]
[1756671092265,120.44,205.24,205.12,1.72386151]
[1756671092466,1.72386151,205.18,205.12,1.72386151]
[1756671092670,120.18,205.17,205.12,1.72386151]
[1756671094070,120.18,205.17,205.1,7.46]
[1756671094269,120.18,205.17,205.08,4.08196736]
[1756671094571,122.87557405,205.17,205.07,11.54196736]
[1756671094769,122.87557405,205.17,205.07,7.46]
[1756671094969,122.87557405,205.17,205.05,4.08196736]
[1756671097277,122.87557405,205.17,205.04,11.54196736]
[1756671099274,2.69557405,205.15,205.05,7.17]
[1756671100574,118.28,205.14,205.05,7.17]
[1756671100773,118.28,205.14,205.05,9.86557405]
[1756671104271,2.69557405,205.17,205.05,9.86557405]
[1756671104577,115.96,205.13,205.05,9.86557405]
[1756671105578,2.69557405,205.16,205.05,9.86557405]
[1756671105777,2.48,205.15,205.05,9.86557405]
[1756671105978,4.86,205.14,205.05,9.86557405]
[1756671106980,2.69557405,205.16,205.05,9.86557405]
[1756671107174,8.36,205.13,205.05,9.86557405]
[1756671108981,2.69557405,205.16,205.05,9.86557405]
[1756671109183,4.14,205.15,205.05,9.86557405]
[1756671111082,2.69557405,205.16,205.05,9.86557405]
[1756671111280,4.12,205.15,205.05,9.86557405]
[1756671114481,2.69557405,205.16,205.05,9.86557405]
[1756671114886,3.18,205.15,205.05,9.86557405]
[1756671115585,3.18,205.15,205.06,7.17]
[1756671116189,2.69557405,205.16,205.06,7.17]
[1756671116390,120.02,205.15,205.06,7.17]
[1756671118791,2.69557405,205.16,205.06,7.17]
[1756671118989,119.96,205.15,205.06,7.17]
[1756671119989,1.72591022,205.13,205.07,1.72591022]
[1756671120389,327.68,205.19,205.07,1.72591022]
[1756671120584,1.72591022,205.13,205.07,1.72591022]
[1756671120788,1.72591022,205.13,205.07,8.89591022]
[1756671126192,80.8,205.12,205.07,1.72591022]
[1756671126392,80.8,205.12,205.08,7.17]
[1756671126694,80.8,205.12,205.07,1.72591022]
[1756671127096,80.8,205.12,205.08,7.17]
[1756671127393,80.8,205.12,205.07,1.72591022]
[1756671127794,80.8,205.12,205.08,7.17]
[1756671127998,80.8,205.12,205.07,1.72591022]
[1756671127999,327.68,205.19,205.1,7.55]
[1756671128197,1.72591022,205.14,205.1,7.55]
[1756671129796,119.9,205.18,205.1,7.55]
[1756671129997,1.72591022,205.13,205.1,7.55]
[1756671130496,119.9,205.12,205.1,7.55]
[1756671133100,1.72591022,205.13,205.1,7.55]
[1756671133301,119.9,205.12,205.1,7.55]
[1756671141213,119.9,205.12,205.08,7.55]
[1756671141512,119.9,205.12,205.07,1.72591022]
[1756671142114,119.9,205.12,205.08,7.55]
[1756671142315,119.9,205.12,205.07,1.72591022]
[1756671142510,119.9,205.12,205.08,7.55]
[1756671142714,119.9,205.12,205.06,7.55]
[1756671142917,119.9,205.12,205.06,9.27591022]
[1756671143519,121.62591022,205.12,205.06,9.27591022]
[1756671146418,121.62591022,205.12,205.06,7.55]
[1756671146619,121.62591022,205.12,205.06,9.27591022]
[1756671153427,119.9,205.12,205.06,9.27591022]
[1756671153627,121.62591022,205.12,205.06,9.27591022]
[1756671154930,119.9,205.12,205.06,9.27591022]
[1756671155429,121.62591022,205.12,205.06,9.27591022]
[1756671155624,119.88,205.11,205.07,7.55]
[1756671155824,1.72591022,205.12,205.06,1.72591022]
[1756671156129,119.88,205.11,205.07,7.55]
[1756671156620,119.88,205.11,205.07,9.27591022]
[1756671156826,119.88,205.11,205.08,7.55]
[1756671158030,119.88,205.12,205.08,7.55]
[1756671159126,119.88,205.12,205.07,1.72591022]
[1756671159323,119.88,205.12,205.07,9.44591022]
[1756671160829,119.88,205.12,205.08,7.72]
[1756671161930,119.88,205.12,205.07,1.72591022]
[1756671162131,119.88,205.12,205.06,4.09921851]
[1756671164034,121.60591022,205.12,205.06,4.09921851]
[1756671165936,119.88,205.12,205.06,4.09921851]
[1756671166136,121.60591022,205.12,205.05,5.82512873]
[1756671166638,121.60591022,205.12,205.05,4.09921851]
[1756671166831,121.60591022,205.12,205.02,5.46219311]
[1756671166832,1.72591022,205.08,205.02,4.09921851]
[1756671167227,119.88,205.12,205.02,4.09921851]
[1756671167433,1.72591022,205.09,205.03,4.09921851]
[1756671167633,119.88,205.12,205.03,4.09921851]
[1756671167836,1.72591022,205.08,205.03,4.09921851]
[1756671169242,1.72591022,205.08,205.02,13.54512873]
[1756671171235,1.72591022,205.08,205.02,11.81921851]
[1756671172644,1.72591022,205.08,205.02,7.72]
[1756671180851,1.72591022,205.07,205.01,1.72591022]
[1756671181150,1.72591022,205.07,205.01,5.82512873]
[1756671181449,1.72591022,205.07,205.02,7.72]
[1756671181651,1.72591022,205.07,205.01,5.82512873]
[1756671181846,1.72591022,205.07,205.02,7.72]
[1756671182145,1.72591022,205.07,205.01,5.82512873]
[1756671183446,119.88,205.12,205.03,1.72591022]
[1756671183657,1.72591022,205.08,205.04,7.72]
[1756671183847,1.72591022,205.08,205.03,1.72591022]
[1756671184048,1.72591022,205.08,205.04,7.72]
[1756671184350,1.72591022,205.08,205.03,1.72591022]
[1756671184947,1.72591022,205.08,205.04,7.72]
[1756671185148,121.58591022,205.08,205.03,1.72591022]
[1756671185753,121.58591022,205.08,205.04,7.72]
[1756671190954,1.72591022,205.08,205.04,7.72]
[1756671191155,119.86,205.1,205.05,1.72591022]
[1756671191756,119.86,205.1,205.06,7.49]
[1756671191961,119.86,205.1,205.05,1.72591022]
[1756671192162,119.86,205.1,205.06,7.49]
[1756671192362,119.86,205.1,205.05,1.72591022]
[1756671192764,119.86,205.1,205.06,7.49]
[1756671193163,119.86,205.1,205.05,1.72591022]
[1756671193562,119.86,205.1,205.06,7.49]
[1756671193763,119.86,205.1,205.05,1.72591022]
[1756671194062,119.86,205.1,205.05,7.49]
[1756671194259,119.86,205.1,205.06,7.49]
[1756671204566,121.58591022,205.1,205.06,7.49]
[1756671204770,5.43430253,205.18,205.06,7.49]
[1756671204967,1.72591022,205.12,205.07,1.72591022]
[1756671205167,1.72591022,205.12,205.08,7.49]
[1756671205368,121.54591022,205.12,205.07,1.72591022]
[1756671205568,121.54591022,205.12,205.08,7.49]
[1756671206173,121.54591022,205.12,205.05,4.09921851]
[1756671206373,121.54591022,205.12,205.05,1.72591022]
[1756671206576,1.72591022,205.1,205.06,7.49]
[1756671207270,1.72591022,205.1,205.05,7.49]
[1756671207476,1.72591022,205.1,205.04,5.82512873]
[1756671207874,1.72591022,205.1,205.05,7.49]
[1756671208074,1.72591022,205.1,205.04,5.82512873]
[1756671208277,1.72591022,205.1,205.05,7.49]
[1756671208675,1.72591022,205.1,205.04,5.82512873]
[1756671209874,1.72591022,205.1,205.05,7.49]
[1756671210379,1.72591022,205.1,205.04,5.82512873]
[1756671210678,1.72591022,205.1,205.05,7.49]
[1756671211371,1.72591022,205.1,205.04,5.82512873]
[1756671211575,1.72591022,205.1,205.05,7.49]
[1756671212781,1.72591022,205.1,205.04,5.82512873]
[1756671212977,1.72591022,205.1,205.05,7.49]
[1756671213376,1.72591022,205.1,205.04,5.82512873]
[1756671213677,1.72591022,205.1,205.05,7.49]
[1756671213879,1.72591022,205.1,205.04,5.82512873]
[1756671214280,1.72591022,205.1,205.05,7.49]
[1756671214879,1.72591022,205.1,205.04,5.82512873]
[1756671215080,1.72591022,205.1,205.05,7.49]
[1756671215482,1.72591022,205.1,205.04,5.82512873]
[1756671216484,1.72591022,205.1,205.05,7.49]
[1756671216878,1.72591022,205.1,205.04,5.82512873]
[1756671217083,1.72591022,205.1,205.05,7.49]
[1756671217381,1.72591022,205.1,205.04,5.82512873]
[1756671217984,115.46,205.11,205.05,7.81]
[1756671218183,117.18591022,205.11,205.05,7.81]
[1756671218381,1.72591022,205.11,205.05,7.81]
[1756671218678,121.52591022,205.11,205.05,7.81]
[1756671218879,1.72591022,205.11,205.05,7.81]
[1756671219082,121.52591022,205.11,205.05,7.81]
[1756671222087,1.72591022,205.11,205.05,7.81]
[1756671222282,20.58591022,205.11,205.05,7.81]
[1756671222989,1.72591022,205.11,205.05,7.81]
[1756671223189,38.54591022,205.11,205.05,11.90921851]
[1756671223886,1.72591022,205.11,205.05,11.90921851]
[1756671226991,70.02,205.12,205.08,1.72591022]
[1756671227194,70.02,205.12,205.09,7.81]
[1756671227602,71.74591022,205.12,205.09,7.81]
[1756671230395,71.74591022,205.12,205.06,13.63512873]
[1756671234698,70.02,205.12,205.06,13.63512873]
[1756671234898,70.02,205.12,205.07,7.81]
[1756671235099,71.74591022,205.12,205.06,13.63512873]
[1756671236702,70.02,205.12,205.07,7.81]
[1756671236900,70.02,205.12,205.06,11.90921851]
[1756671237296,1.72591022,205.11,205.06,4.09921851]